bitfinex/quotes_BTCUSD_20260125
["timestamp","ask_amount","ask_price","bid_price","bid_amount"]
[1769383123402,0.17792,86372.0,86355.0,0.0115801]
[1769383123805,0.17792,86372.0,86354.0,0.01158023]
[1769383124011,0.17792,86372.0,86355.0,0.0115801]
[1769383124416,0.25548335,86376.0,86363.0,0.01157903]
[1769383124615,0.01157554,86389.0,86368.0,0.01157836]
[1769383124818,0.17788,86383.0,86367.0,0.25199313]
[1769383125248,0.01157581,86387.0,86367.0,0.25199313]
[1769383125443,0.17788,86383.0,86367.0,0.25199313]
[1769383126869,0.17788,86383.0,86354.0,0.01158023]
[1769383126870,0.01157769,86373.0,86354.0,0.01158023]
[1769383127100,1.14348918,86373.0,86354.0,0.01158023]
[1769383127301,1.14348918,86373.0,86355.0,0.0115801]
[1769383127503,1.14348918,86373.0,86347.0,0.25199313]
[1769383127504,1.14348918,86373.0,86352.0,0.0115805]
[1769383127706,1.14348918,86373.0,86350.0,0.01158077]
[1769383127707,1.15506727,86370.0,86350.0,0.01158077]
[1769383127909,1.14348918,86369.0,86349.0,0.07463238]
[1769383128113,1.14348918,86369.0,86349.0,0.06305147]
[1769383128114,0.01157889,86364.0,86349.0,0.06305147]
[1769383128266,1.14348918,86365.0,86349.0,0.06305147]
[1769383128478,1.14348918,86365.0,86347.0,0.01158117]
[1769383128657,1.14348918,86365.0,86352.0,0.001]
[1769383129280,0.05789126,86369.0,86352.0,0.001]
[1769383129281,1.14348918,86359.0,86352.0,0.001]
[1769383129483,1.14348918,86359.0,86342.0,0.01158184]
[1769383129701,1.14348918,86359.0,86343.0,0.01158171]
[1769383129939,1.14348918,86359.0,86345.0,0.0579071]
[1769383130145,1.14348918,86359.0,86346.0,0.01158131]
[1769383130369,1.14348918,86359.0,86347.0,0.01158117]
[1769383130586,1.14348918,86359.0,86346.0,0.01158131]
[1769383130793,0.17788,86362.0,85698.0,0.025]
[1769383130794,0.17788,86362.0,86349.0,0.01158091]
[1769383130999,0.17788,86361.0,86352.0,0.0115805]
[1769383131170,0.17788,86363.0,86351.0,0.01158064]
[1769383131648,0.17788,86363.0,86353.0,0.01158037]
[1769383131877,0.17788,86363.0,86351.0,0.01158064]
[1769383132087,0.01157769,86373.0,86353.0,0.01158037]
[1769383132291,0.17788,86366.0,86352.0,0.0115805]
[1769383132695,0.17788,86366.0,86351.0,0.01158064]
[1769383134151,0.17788,86366.0,86350.0,0.01158077]
[1769383134328,0.17788,86366.0,86351.0,0.01158064]
[1769383134980,0.17788,86367.0,86351.0,0.01158064]
[1769383135185,0.17788,86367.0,86294.0,2.37527724]
[1769383135381,0.17788,86367.0,86350.0,0.01158077]
[1769383135746,1.14348918,86377.0,86354.0,0.25199313]
[1769383135969,0.11518882,86373.0,86359.0,1.3091058]
[1769383136175,0.01157621,86384.0,86359.0,1.32068536]
[1769383136369,0.23150554,86392.0,86359.0,1.3091058]
[1769383136370,0.18945715,86377.0,86359.0,1.3091058]
[1769383136689,0.01157755,86374.0,86359.0,1.3091058]
[1769383136884,0.01157755,86374.0,86347.0,0.01158117]
[1769383136885,0.01157796,86371.0,86351.0,0.01158064]
[1769383137094,1.14348918,86370.0,86351.0,0.01158064]
[1769383137293,1.39897253,86370.0,86351.0,0.01158064]
[1769383137642,1.39897253,86370.0,86352.0,0.0115805]
[1769383138084,1.39897253,86370.0,86350.0,0.01158077]
[1769383138294,1.39897253,86370.0,86353.0,0.01158037]
[1769383139173,0.18945715,86377.0,86357.0,0.01157983]
[1769383139496,0.11539749,86376.0,86361.0,1.0211717]
[1769383139725,0.11539749,86375.0,86362.0,0.01157916]
[1769383139897,0.11539749,86374.0,86362.0,0.01157916]
[1769383140101,0.11539749,86373.0,86361.0,1.032751]
[1769383140321,0.11539749,86372.0,86362.0,0.01157916]
[1769383140512,1.32136918,86380.0,86361.0,1.0211717]
[1769383140712,0.11550688,86379.0,86361.0,1.032751]
[1769383141040,0.11550688,86378.0,86362.0,0.01157916]
[1769383141281,0.11550688,86377.0,86364.0,0.01157889]
[1769383141485,0.11550688,86376.0,86363.0,0.01157903]
[1769383141699,0.11550688,86375.0,86361.0,1.0211717]
[1769383141903,0.11550688,86374.0,86361.0,1.0211717]
[1769383142128,0.11550688,86373.0,86362.0,0.25199313]
[1769383142339,0.11550688,86372.0,86362.0,0.25199313]
[1769383142547,0.11550688,86371.0,86362.0,0.25199313]
[1769383142700,0.11550688,86370.0,86362.0,0.25199313]
[1769383143028,0.11550688,86369.0,86362.0,0.25199313]
[1769383143236,1.07565948,86379.0,86362.0,0.25199313]
[1769383143436,1.17979702,86378.0,86362.0,0.01157916]
[1769383143666,0.11571442,86377.0,86360.0,0.01157943]
[1769383143871,1.17979702,86376.0,86359.0,0.01157956]
[1769383144068,0.11571442,86375.0,86360.0,0.01157943]
[1769383144305,1.0640826,86376.0,86359.0,0.01157956]
[1769383144306,0.11571442,86374.0,86359.0,0.01157956]
[1769383144514,1.0640826,86376.0,86352.0,0.06226424]
[1769383144515,0.11571442,86373.0,86352.0,0.06226424]
[1769383144692,0.17788,86380.0,86350.0,0.01158077]
[1769383144693,1.0640826,86367.0,86350.0,0.01158077]
[1769383144983,1.29652256,86365.0,86348.0,0.23971818]
[1769383145181,0.11571442,86364.0,86350.0,0.07627365]
[1769383145402,0.23243996,86361.0,86343.0,0.17788]
[1769383145614,1.0640826,86358.0,86346.0,0.01158131]
[1769383146065,1.0640826,86358.0,86345.0,0.01158144]
[1769383146275,1.0640826,86358.0,86343.0,0.17788]
[1769383146489,0.11571545,86357.0,86345.0,0.01158144]
[1769383146702,1.29652256,86358.0,86346.0,0.01158131]
[1769383147126,1.29652256,86358.0,86348.0,0.01158104]
[1769383147335,1.0640826,86375.0,86360.0,0.01157943]
[1769383147541,0.11570508,86374.0,86360.0,0.01157943]
[1769383147722,0.11570508,86373.0,86360.0,0.06947627]
[1769383147942,0.01157661,86381.0,86360.0,0.06947627]
[1769383147943,0.00087222,86382.0,86371.0,0.01157796]
[1769383148153,0.00087222,86382.0,86373.0,0.01157769]
[1769383148398,0.00087222,86382.0,86372.0,0.01157782]
[1769383148868,0.00087222,86382.0,86370.0,0.01157809]
[1769383150365,0.00087222,86382.0,86371.0,0.01157796]
[1769383150538,0.00087222,86382.0,86370.0,0.01157809]
[1769383151731,0.00087222,86382.0,86365.0,1.07273332]
[1769383151939,0.01,86370.0,86360.0,0.01157943]
[1769383152147,0.01,86370.0,86364.0,0.01157889]
[1769383152325,1.0640826,86373.0,86363.0,0.01157903]
[1769383152548,0.23243996,86378.0,86366.0,0.01157863]
[1769383152762,0.23243996,86378.0,86367.0,0.01157849]
[1769383152940,0.00087222,86382.0,86370.0,0.01157809]
[1769383153145,0.00087222,86382.0,86371.0,0.01157796]
[1769383153346,0.00087222,86382.0,86370.0,0.01157809]
[1769383153551,0.00087222,86382.0,86371.0,0.01157796]
[1769383153953,0.00118922,86382.0,86371.0,0.01157796]
[1769383154157,0.00118922,86382.0,86370.0,0.01157809]
[1769383154536,0.00118922,86382.0,86371.0,0.01157796]
[1769383155000,0.00118922,86382.0,86370.0,0.01157809]
[1769383156122,0.00118922,86382.0,86371.0,0.01157796]
[1769383156358,0.00118922,86382.0,86370.0,0.01157809]
[1769383158582,0.00118922,86382.0,86367.0,0.22813714]
[1769383158794,1.1332539,86376.0,86357.0,0.05789854]
[1769383158990,0.24396689,86379.0,86362.0,0.05789521]
[1769383159381,0.06945522,86387.0,86354.0,0.0620768]
[1769383159382,0.1081527,86402.0,86380.0,0.01157675]
[1769383159592,0.2298666,86415.0,86367.0,0.06031083]
[1769383159593,0.2298666,86415.0,86404.0,0.22677838]
[1769383159594,0.0006037,86415.0,86404.0,0.22677838]
[1769383159812,0.0006037,86415.0,86406.0,0.01157327]
[1769383160079,0.0006037,86415.0,86411.0,0.0115726]
[1769383160496,0.0006037,86415.0,86410.0,0.01157273]
[1769383160698,0.0006037,86415.0,86409.0,0.01157286]
[1769383160903,0.0006037,86415.0,86408.0,0.011573]
[1769383161112,0.0006037,86415.0,86410.0,0.01157273]
[1769383161588,0.0006037,86415.0,86409.0,0.01157286]
[1769383161815,0.0006037,86415.0,86413.0,0.05786152]
[1769383162044,0.0006037,86415.0,86412.0,0.23849247]
[1769383162045,0.0006037,86415.0,86412.0,0.29635473]
[1769383162283,0.0006037,86415.0,86412.0,0.23849247]
[1769383162754,0.0006037,86415.0,86413.0,0.22692001]
[1769383163837,0.0006037,86415.0,86409.0,0.01157286]
[1769383164059,0.0006037,86415.0,86406.0,0.01157327]
[1769383164256,0.0006037,86415.0,86407.0,0.01157313]
[1769383164373,0.0006037,86415.0,86404.0,0.23849354]
[1769383164580,0.0006037,86415.0,86405.0,0.0115734]
[1769383164784,0.0006037,86415.0,86407.0,0.01157313]
[1769383165238,0.24396689,86430.0,86415.0,0.0006037]
[1769383165451,0.01157179,86417.0,86414.0,0.24883319]
[1769383165655,0.01157179,86417.0,86414.0,0.15502439]
[1769383166751,0.00014147,86430.0,86420.0,0.01157139]
[1769383166982,0.00014147,86430.0,86418.0,0.23849167]
[1769383167150,0.00014147,86430.0,86411.0,0.0115726]
[1769383167151,0.24396689,86428.0,86411.0,0.0115726]
[1769383167357,1.1332539,86427.0,86410.0,0.23849274]
[1769383167944,1.1332539,86427.0,86410.0,0.22692001]
[1769383169976,1.14482435,86427.0,86410.0,0.22692001]
[1769383170357,1.1332539,86427.0,86410.0,0.22692001]
[1769383170567,1.14482475,86424.0,86410.0,0.22692001]
[1769383170803,0.01157099,86423.0,86410.0,0.22692001]
[1769383170992,1.14482475,86424.0,86410.0,0.22692001]
[1769383171195,1.38879124,86427.0,86410.0,0.22692001]
[1769383171620,1.37722079,86427.0,86410.0,0.22692001]
[1769383171820,1.38879124,86427.0,86410.0,0.22692001]
[1769383172013,0.01171152,86430.0,86418.0,0.22692001]
[1769383172014,0.00014147,86430.0,86418.0,0.22692001]
[1769383173297,0.06941557,86436.0,86418.0,0.22692001]
[1769383173298,0.0004,86459.0,86418.0,0.34714974]
[1769383173564,0.0002,86465.0,86459.0,0.01156617]
[1769383173788,0.0002,86465.0,86462.0,0.01156577]
[1769383173999,0.0002,86465.0,86455.0,0.69493207]
[1769383174000,0.0002,86476.0,86466.0,0.7064973]
[1769383174200,0.0002,86476.0,86472.0,0.23918823]
[1769383174398,0.0002,86476.0,86472.0,0.2276238]
[1769383174644,0.0002,86476.0,86466.0,0.01156523]
[1769383175023,0.0002,86476.0,86465.0,0.23918917]
[1769383175024,0.0002,86476.0,86465.0,0.2276238]
[1769383175220,0.0012,86476.0,86465.0,0.2276238]
[1769383175913,0.0012,86476.0,86457.0,0.23919024]
[1769383176096,1.11960708,86476.0,86458.0,0.0115663]
[1769383176296,0.01156403,86475.0,86457.0,0.2276238]
[1769383176517,1.11840708,86474.0,86457.0,0.2276238]
[1769383177059,1.12997124,86474.0,86457.0,0.2276238]
[1769383177265,1.11840708,86473.0,86457.0,0.2276238]
[1769383177672,1.11840708,86473.0,86457.0,0.23919024]
[1769383177935,1.11840708,86473.0,86457.0,0.2276238]
[1769383178153,1.11840708,86473.0,86457.0,0.23919024]
[1769383178579,1.11840708,86473.0,86460.0,0.01156604]
[1769383178713,1.11840708,86473.0,86461.0,0.0115659]
[1769383178926,0.0002,86476.0,86463.0,0.70629771]
[1769383179125,0.0002,86476.0,86460.0,0.2276238]
[1769383179331,1.11840708,86475.0,86460.0,0.2276238]
[1769383180367,0.0002,86476.0,86460.0,0.69473207]
[1769383180580,0.0002,86476.0,86461.0,0.2276238]
[1769383182199,0.0002,86476.0,86465.0,0.05782645]
[1769383182394,0.0002,86476.0,86460.0,0.43906821]
[1769383182395,0.0002,86480.0,86473.0,0.2276238]
[1769383182604,0.0002,86480.0,86474.0,0.01156416]
[1769383182820,0.0002,86480.0,86474.0,0.23918796]
[1769383183047,0.0002,86480.0,86474.0,0.2276238]
[1769383183481,0.0002,86480.0,86477.0,0.01156376]
[1769383183710,0.0002,86480.0,86463.0,0.23131158]
[1769383183712,1.11840708,86504.0,86491.0,0.05780891]
[1769383183945,0.04628,86511.0,86487.0,0.01156243]
[1769383183946,0.01,86491.0,86487.0,0.01156243]
[1769383184213,1.11907846,86499.0,86491.0,0.01156189]
[1769383184442,1.11907846,86499.0,86496.0,0.06936716]
[1769383184443,0.00067138,86499.0,86496.0,0.06936716]
[1769383184649,0.00067138,86499.0,86466.0,0.34695321]
[1769383184650,0.00067138,86499.0,86489.0,0.2276238]
[1769383184857,0.00067138,86499.0,86490.0,0.7054904]
[1769383185085,1.11840708,86509.0,86470.0,0.48534821]
[1769383185086,1.11840708,86509.0,86491.0,0.92155217]
[1769383185309,1.11840708,86509.0,86470.0,0.04628]
[1769383185310,1.11840708,86509.0,86508.0,0.06935774]
[1769383185311,0.00014138,86509.0,86508.0,0.06935774]
[1769383185533,0.0002,86514.0,86510.0,0.01155935]
[1769383185733,0.0002,86514.0,86505.0,0.01156002]
[1769383185734,0.01,86510.0,86505.0,0.01156002]
[1769383185947,0.01,86510.0,86507.0,0.01155975]
[1769383186151,0.0002,86514.0,86507.0,0.01155975]
[1769383186152,0.0002,86514.0,86511.0,0.01155922]
[1769383186358,0.0002,86514.0,86510.0,0.01155935]
[1769383186569,0.0002,86514.0,86448.0,0.05767737]
[1769383186570,0.0002,86522.0,86513.0,0.01155895]
[1769383186796,0.0002,86522.0,86521.0,0.05778943]
[1769383187003,1e-08,86522.0,86521.0,0.05778943]
[1769383187214,1e-08,86522.0,86515.0,0.01155868]
[1769383187215,1e-08,86522.0,86491.0,0.05780948]
[1769383187420,1.11840708,86521.0,86512.0,0.01155909]
[1769383187630,0.001,86514.0,86512.0,0.01155909]
[1769383187840,0.001,86514.0,86510.0,0.01155935]
[1769383188051,0.001,86514.0,86503.0,0.23120381]
[1769383188052,0.001,86514.0,86505.0,0.01156002]
[1769383188254,1e-08,86522.0,86521.0,0.05778943]
[1769383188667,0.06031083,86559.0,86516.0,0.24818235]
[1769383188668,0.05778037,86534.0,86532.0,0.01155641]
[1769383188873,1.11840708,86533.0,86522.0,0.01155775]
[1769383189080,0.29645761,86534.0,86520.0,0.01155802]
[1769383189081,0.23867724,86532.0,86520.0,0.01155802]
[1769383189289,0.05778037,86534.0,86527.0,0.01155708]
[1769383189493,0.05778037,86534.0,86526.0,0.01155721]
[1769383189693,0.05778037,86534.0,86528.0,0.01155695]
[1769383190113,0.05778037,86534.0,86529.0,0.01155681]
[1769383190322,0.05778037,86534.0,86526.0,0.01155721]
[1769383190528,0.17764,86533.0,86525.0,0.01155735]
[1769383190797,0.17764,86533.0,86531.0,0.01155655]
[1769383190997,0.17764,86533.0,86524.0,0.23918128]
[1769383191201,1.11840708,86532.0,86518.0,0.01155828]
[1769383191411,1.11840708,86532.0,86517.0,0.2276238]
[1769383191622,0.17764,86533.0,86508.0,0.01155962]
[1769383191623,0.23867724,86527.0,86508.0,0.01155962]
[1769383191829,1.11840708,86524.0,86508.0,0.00047138]
[1769383192031,1.35708432,86522.0,86508.0,0.00047138]
[1769383192258,1.11840708,86520.0,86508.0,0.00047138]
[1769383192718,1.11840708,86518.0,86508.0,0.00047138]
[1769383192919,0.88927343,86518.0,86508.0,0.00047138]
[1769383193135,0.020736,86562.0,86508.0,0.00047138]
[1769383193136,0.1776,86517.0,86515.0,0.01155868]
[1769383193353,0.1776,86516.0,86510.0,0.01155935]
[1769383193564,0.1676,86516.0,86511.0,0.01155922]
[1769383193773,0.1676,86516.0,86508.0,0.00047138]
[1769383193988,1.11840708,86515.0,86508.0,0.00047138]
[1769383194211,0.1676,86516.0,86490.0,0.04628]
[1769383194212,0.23867724,86514.0,86493.0,0.2276238]
[1769383194442,1.35708432,86513.0,86497.0,0.01156109]
[1769383194664,0.23867724,86511.0,86486.0,0.01156256]
[1769383194881,0.1776,86513.0,86467.0,0.04624]
[1769383194882,1.11840708,86496.0,86481.0,0.01156323]
[1769383195086,0.1776,86495.0,86484.0,0.01156283]
[1769383195495,1.11840708,86496.0,86484.0,0.01156283]
[1769383195730,0.1776,86494.0,86484.0,0.01156283]
[1769383195942,1.11840708,86493.0,86483.0,0.01156296]
[1769383196107,1.11840708,86493.0,86482.0,0.01156309]
[1769383196305,1.11840708,86493.0,86485.0,0.01156269]
[1769383196531,0.1776,86494.0,86488.0,0.01156229]
[1769383196749,0.1776,86494.0,86486.0,0.01156256]
[1769383197060,0.1776,86494.0,86487.0,0.01156243]
[1769383197296,0.1776,86494.0,86489.0,0.01156216]
[1769383197474,0.17756,86493.0,86489.0,0.01156216]
[1769383197676,0.17756,86493.0,86488.0,0.01156229]
[1769383198077,1.29417415,86497.0,86486.0,0.01156256]
[1769383198380,1.29417415,86497.0,86488.0,0.01156229]
[1769383198785,1.29417415,86497.0,86487.0,0.01156243]
[1769383199198,1.29417415,86497.0,86488.0,0.01156229]
[1769383199497,1.29417415,86497.0,86487.0,0.01156243]
[1769383199699,1.29417415,86497.0,86486.0,0.01156256]
[1769383199906,1.29417415,86497.0,86483.0,0.06937725]
[1769383200112,0.17756,86496.0,86486.0,0.01156256]
[1769383200458,0.17756,86496.0,86487.0,0.01156243]
[1769383200880,0.17756,86496.0,86489.0,0.01156216]
[1769383201079,0.17756,86496.0,86488.0,0.01156229]
[1769383201080,0.23867724,86513.0,86487.0,0.2276238]
[1769383201423,0.23867724,86513.0,86474.0,0.06031083]
[1769383201424,0.16368,86519.0,86509.0,0.01155949]
[1769383201603,0.16368,86519.0,86510.0,0.01155935]
[1769383201801,0.16368,86519.0,86507.0,0.01155975]
[1769383202013,0.23867724,86518.0,86506.0,0.01155989]
[1769383202225,0.01155668,86530.0,86508.0,0.01155962]
[1769383202425,0.01155668,86530.0,86507.0,0.01155975]
[1769383202426,0.17756,86519.0,86507.0,0.01155975]
[1769383202638,0.17756,86519.0,86503.0,0.2276238]
[1769383203031,0.17756,86518.0,86506.0,0.01155989]
[1769383203248,0.17756,86518.0,86511.0,0.01155922]
[1769383203455,0.17756,86518.0,86509.0,0.01155949]
[1769383203668,0.17756,86518.0,86510.0,0.01155935]
[1769383203883,0.17756,86518.0,86507.0,0.06935832]
[1769383203884,0.01,86510.0,86499.0,0.01156082]
[1769383204095,0.01,86510.0,86503.0,0.01156029]
[1769383204309,0.01,86510.0,86500.0,0.01156069]
[1769383204537,0.01,86510.0,86494.0,0.24700458]
[1769383204538,1.07530286,86510.0,86494.0,0.24700458]
[1769383204719,1.07530286,86510.0,86459.0,0.46264307]
[1769383204720,1.06530286,86508.0,86498.0,0.01156096]
[1769383204982,1.06530286,86508.0,86499.0,0.01156082]
[1769383205154,1.06530286,86508.0,86500.0,0.01156069]
[1769383205369,1.06530286,86508.0,86499.0,0.01156082]
[1769383205583,1.24286286,86508.0,86499.0,0.01156082]
[1769383205781,1.24286286,86508.0,86497.0,0.01156109]
[1769383206020,1.24286286,86508.0,86498.0,0.01156096]
[1769383206572,1.24286286,86508.0,86500.0,0.01156069]
[1769383206773,1.24286286,86508.0,86499.0,0.01156082]
[1769383206969,1.24286286,86508.0,86496.0,0.01156122]
[1769383207182,0.26131237,86506.0,86493.0,0.01156162]
[1769383207394,1.06530286,86505.0,86493.0,0.01156162]
[1769383207605,1.06530286,86505.0,86498.0,0.01156096]
[1769383207801,1.06530286,86505.0,86497.0,0.01156109]
[1769383208037,0.01,86497.0,86490.0,0.01156203]
[1769383208275,0.01,86497.0,86479.0,0.24700458]
[1769383208276,1.06530286,86496.0,86486.0,0.01156256]
[1769383208692,1.06530286,86496.0,86488.0,0.01156229]
[1769383208905,1.06530286,86496.0,86485.0,0.01156269]
[1769383209100,1.32661523,86496.0,86487.0,0.01156243]
[1769383209506,1.32661523,86496.0,86492.0,0.01156176]
[1769383209746,0.17756,86497.0,86492.0,0.01156176]
[1769383209957,0.001,86496.0,86493.0,0.01156162]
[1769383210156,0.001,86496.0,86492.0,0.01156176]
[1769383210365,0.001,86496.0,86491.0,0.01156189]
[1769383210366,0.17756,86497.0,86491.0,0.01156189]
[1769383210784,0.001,86496.0,86490.0,0.01156203]
[1769383211009,1.06530286,86495.0,86484.0,0.01156283]
[1769383211207,1.06530286,86495.0,86486.0,0.01156256]
[1769383211624,1.06530286,86495.0,86477.0,1.06310249]
[1769383211625,1.06530286,86485.0,86467.0,0.24700458]
[1769383211839,0.01,86486.0,86465.0,0.01156537]
[1769383211840,1.06530286,86483.0,86465.0,0.01156537]
[1769383212263,1.06530286,86483.0,86462.0,0.24700458]
[1769383212471,0.26131237,86480.0,86464.0,0.0115655]
[1769383212673,1.06530286,86479.0,86463.0,0.00072578]
[1769383212882,1.06530286,86479.0,86462.0,0.24700458]
[1769383213079,0.27287587,86479.0,86458.0,0.0115663]
[1769383213284,0.01203436,86480.0,86456.0,0.24700458]
[1769383213285,1.06530286,86475.0,86460.0,0.01156604]
[1769383213560,1.06530286,86473.0,86456.0,0.25857115]
[1769383213741,1.06530286,86473.0,86456.0,0.24700458]
[1769383213967,1.06530286,86473.0,86453.0,0.01156697]
[1769383213968,1.32661523,86473.0,86453.0,0.01156697]
[1769383214302,1.32661523,86473.0,86451.0,0.01156724]
[1769383214303,0.26131237,86472.0,86451.0,0.01156724]
[1769383214504,1.32661523,86471.0,86451.0,0.01156724]
[1769383214719,1.32661523,86471.0,86452.0,0.01156711]
[1769383214939,1.32661523,86471.0,86454.0,0.01156684]
[1769383215116,1.32661523,86471.0,86456.0,0.01156657]
[1769383215550,0.1776,86470.0,86456.0,0.01156657]
[1769383215765,0.1776,86470.0,86454.0,0.069401]
[1769383215994,0.1776,86470.0,86456.0,0.01156657]
[1769383216574,0.1776,86470.0,86455.0,0.01156671]
[1769383216796,0.1776,86470.0,86326.0,0.0004]
[1769383216797,1.13358279,86467.0,86446.0,0.24177352]
[1769383216999,0.1776,86470.0,86439.0,0.01156885]
[1769383217000,0.01156617,86459.0,86439.0,0.01156885]
[1769383217125,1.38075366,86457.0,86440.0,0.01156871]
[1769383217532,1.38075366,86457.0,86437.0,0.01156911]
[1769383218218,1.12201769,86455.0,86438.0,0.00072567]
[1769383218418,1.12201769,86455.0,86438.0,0.00337731]
[1769383218646,1.1335844,86455.0,86438.0,0.00337731]
[1769383219075,1.12201769,86455.0,86440.0,0.01156871]
[1769383219266,1.12201769,86455.0,86441.0,0.01156858]
[1769383219687,0.04624,86454.0,86439.0,0.01156885]
[1769383219823,1.12201769,86453.0,86438.0,0.01156898]
[1769383220074,1.12201769,86453.0,86440.0,0.01156871]
[1769383220298,1.12201769,86453.0,86439.0,0.01156885]
[1769383220776,1.12201769,86453.0,86441.0,0.01156858]
[1769383220993,1.12201769,86453.0,86440.0,0.01156871]
[1769383221621,1.12201769,86453.0,86441.0,0.01156858]
[1769383221799,0.04624,86454.0,86443.0,0.01156831]
[1769383222001,0.04624,86454.0,86442.0,0.01156845]
[1769383222202,0.04624,86454.0,86443.0,0.01156831]
[1769383222409,1.12201769,86456.0,86444.0,0.01156818]
[1769383222610,0.22384,86455.0,86442.0,0.01156845]
[1769383222816,1.34585769,86455.0,86442.0,0.01156845]
[1769383223181,1.34585769,86455.0,86443.0,0.01156831]
[1769383223386,1.34585769,86455.0,86441.0,0.01156858]
[1769383223798,1.34585769,86455.0,86442.0,0.01156845]
[1769383224231,1.34585769,86455.0,86443.0,0.01156831]
[1769383224893,1.34585769,86455.0,86442.0,0.01156845]
[1769383225104,1.34585769,86455.0,86441.0,0.01156858]
[1769383225575,1.34585769,86455.0,86440.0,0.01156871]
[1769383225779,1.34585769,86455.0,86441.0,0.01156858]
[1769383226206,1.34585769,86455.0,86441.0,0.06941125]
[1769383226406,1.34585769,86455.0,86442.0,0.01156845]
[1769383226815,1.34585769,86455.0,86441.0,0.01156858]
[1769383227022,1.34585769,86455.0,86442.0,0.01156845]
[1769383227231,1.34685769,86455.0,86442.0,0.01156845]
[1769383227442,1.34685769,86455.0,86441.0,0.01156858]
[1769383228381,1.34585769,86455.0,86441.0,0.01156858]
[1769383228637,1.34685769,86455.0,86441.0,0.01156858]
[1769383229034,1.34585769,86455.0,86440.0,0.01156871]
[1769383229609,1.34685769,86455.0,86441.0,0.01156858]
[1769383229939,1.34585769,86455.0,86442.0,0.01156845]
[1769383230360,1.34685769,86455.0,86444.0,0.01156818]
[1769383230772,1.34685769,86455.0,86442.0,0.01156845]
[1769383230979,1.34685769,86455.0,86444.0,0.01156818]
[1769383231202,1.34685769,86455.0,86443.0,0.01156831]
[1769383231355,1.34685769,86455.0,86444.0,0.01156818]
[1769383231556,1.34585769,86455.0,86443.0,0.01156831]
[1769383231757,1.34685769,86455.0,86442.0,0.01156845]
[1769383231962,1.34685769,86455.0,86439.0,0.00014138]
[1769383232169,1.34685769,86455.0,86364.0,0.1388]
[1769383232170,1.12201769,86447.0,86423.0,0.01157099]
[1769383232370,0.01,86438.0,86423.0,0.01171243]
[1769383232544,0.04624,86455.0,86437.0,1.05520892]
[1769383232545,0.17764,86447.0,86437.0,1.05520892]
[1769383232753,0.17764,86447.0,86438.0,0.24177352]
[1769383233154,0.25873597,86459.0,86438.0,0.24177352]
[1769383233155,0.01156858,86441.0,86438.0,0.2533425]
[1769383233361,0.00156858,86441.0,86440.0,0.22933296]
[1769383235600,0.001,86441.0,86440.0,0.24090167]
[1769383235802,0.001,86441.0,86440.0,0.22933296]
[1769383236277,0.17764,86448.0,86440.0,0.22933296]
[1769383236485,1.12696633,86456.0,86442.0,0.01156845]
[1769383236686,0.1555612,86494.0,86442.0,0.01156845]
[1769383236687,0.17768,86455.0,86445.0,0.01156804]
[1769383236837,0.17768,86455.0,86447.0,0.01156778]
[1769383237035,0.17768,86455.0,86444.0,0.01156818]
[1769383237036,0.98509524,86511.0,86444.0,0.01156818]
[1769383237037,0.98509524,86511.0,86461.0,0.0115659]
[1769383237038,1.12696633,86494.0,86461.0,0.0115659]
[1769383237365,0.06031083,86507.0,86444.0,0.17768]
[1769383237366,0.2297515,86488.0,86466.0,0.24089819]
[1769383237563,1.12696633,86485.0,86466.0,0.24089819]
[1769383237739,1.12696633,86485.0,86462.0,0.01156577]
[1769383237740,1.13852942,86482.0,86462.0,0.01156577]
[1769383237940,1.12696633,86480.0,86463.0,0.01156564]
[1769383238140,1.35718892,86480.0,86462.0,0.01156577]
[1769383238496,1.35718892,86480.0,86463.0,0.2408986]
[1769383238657,1.35718892,86480.0,86463.0,0.22933296]
[1769383240919,0.2297515,86479.0,86456.0,0.01156657]
[1769383241229,1.12743742,86480.0,86458.0,0.0115663]
[1769383241230,1.12696633,86476.0,86458.0,0.0115663]
[1769383241503,1.12696633,86474.0,86457.0,0.01156644]
[1769383241710,1.12696633,86474.0,86458.0,0.0115663]
[1769383242448,1.12696633,86474.0,86459.0,0.01156617]
[1769383242649,1.12696633,86474.0,86456.0,0.24089953]
[1769383242841,1.12696633,86474.0,86457.0,0.05783211]
[1769383243054,1.12696633,86474.0,86458.0,0.0115663]
[1769383243452,1.12696633,86474.0,86457.0,0.01156644]
[1769383243891,1.12696633,86474.0,86458.0,0.0115663]
[1769383244240,1.12696633,86474.0,86459.0,0.01156617]
[1769383244443,1.12696633,86474.0,86458.0,0.0115663]
[1769383244647,1.12696633,86474.0,86459.0,0.01156617]
[1769383244867,1.12696633,86474.0,86458.0,0.0115663]
[1769383245269,1.12696633,86474.0,86459.0,0.01156617]
[1769383245522,0.00047109,86480.0,86459.0,0.01156617]
[1769383245523,0.00047109,86480.0,86461.0,0.22933296]
[1769383245725,1.12743742,86480.0,86461.0,0.22933296]
[1769383245906,1.12696633,86478.0,86461.0,0.22933296]
[1769383246041,1.35671783,86478.0,86461.0,0.22933296]
[1769383246930,0.00047109,86480.0,86459.0,0.01156617]
[1769383246931,0.00047109,86480.0,86468.0,0.43770083]
[1769383247133,0.00047109,86480.0,86473.0,0.22933296]
[1769383248205,0.00047109,86480.0,86477.0,0.22933296]
[1769383248409,0.00047109,86480.0,86472.0,0.01156443]
[1769383248785,0.00047109,86480.0,86474.0,0.01156416]
[1769383249204,0.00047109,86480.0,86473.0,0.0115643]
[1769383249415,0.00047109,86480.0,86475.0,0.01156403]
[1769383249616,0.00047109,86480.0,86467.0,1.06908061]
[1769383249617,0.17764,86501.0,86482.0,0.22933296]
[1769383249824,1.12696633,86503.0,86489.0,0.01156216]
[1769383249825,0.00049422,86500.0,86489.0,0.01156216]
[1769383250237,0.00049422,86500.0,86487.0,0.24089539]
[1769383250453,0.00049422,86500.0,86483.0,1.08064357]
[1769383250653,1.12696633,86499.0,86485.0,0.01156269]
[1769383250861,1.12696633,86499.0,86484.0,0.01156283]
[1769383251079,1.12696633,86499.0,86487.0,0.01156243]
[1769383251326,1.12696633,86499.0,86488.0,0.01156229]
[1769383251543,1.12696633,86499.0,86486.0,0.22933296]
[1769383251752,1.12696633,86499.0,86488.0,0.01156229]
[1769383251956,0.00049422,86500.0,86489.0,0.01156216]
[1769383252156,0.00049422,86500.0,86486.0,0.22933296]
[1769383252580,1.12746055,86500.0,86486.0,0.22933296]
[1769383252786,1.12746055,86500.0,86480.0,0.06938002]
[1769383252787,1.35721205,86500.0,86484.0,0.01156283]
[1769383253199,1.35721205,86500.0,86483.0,0.01156296]
[1769383253408,1.35721205,86500.0,86486.0,0.01156256]
[1769383253638,1.35721205,86500.0,86485.0,0.01156269]
[1769383253826,1.35721205,86500.0,86486.0,0.01156256]
[1769383254451,1.35721205,86500.0,86485.0,0.01156269]
[1769383254653,1.35721205,86500.0,86484.0,0.01156283]
[1769383254860,1.35721205,86500.0,86485.0,0.01156269]